bitfinex/quotes_SOLUSD_20241121
["timestamp","ask_amount","ask_price","bid_price","bid_amount"]
[1732166299226,23.776884,240.4,240.33,20.0]
[1732166299538,23.776884,240.4,240.35,20.0]
[1732166299820,30.319,240.41,240.36,23.90393365]
[1732166300049,30.319,240.41,240.37,20.0]
[1732166301035,55.59823365,240.47,240.39,43.90393365]
[1732166301238,31.6943,240.47,240.43,20.0]
[1732166302507,23.776884,240.46,240.43,20.0]
[1732166303706,31.6943,240.47,240.36,20.0]
[1732166303904,23.90393365,240.44,240.36,20.0]
[1732166304121,23.90393365,240.44,240.36,43.90393365]
[1732166304910,23.776884,240.43,240.36,43.90393365]
[1732166305123,23.776884,240.43,240.34,20.0]
[1732166305306,23.776884,240.41,240.35,23.90393365]
[1732166305508,23.776884,240.39,240.31,23.90393365]
[1732166305721,23.776884,240.39,240.27,1.0]
[1732166305722,23.776884,240.39,240.36,23.90393365]
[1732166305907,23.90393365,240.46,240.38,23.90393365]
[1732166306211,23.776884,240.45,240.39,23.90393365]
[1732166306418,23.776884,240.45,240.4,23.90393365]
[1732166306634,23.90393365,240.45,240.39,20.0]
[1732166306930,23.776884,240.44,240.39,20.0]
[1732166307228,23.776884,240.44,240.32,0.5]
[1732166307229,23.90393365,240.43,240.36,43.90393365]
[1732166307413,23.90393365,240.43,240.36,20.0]
[1732166307619,23.776884,240.42,240.36,20.0]
[1732166308314,23.776884,240.42,240.39,23.90393365]
[1732166308523,23.776884,240.46,240.39,43.90393365]
[1732166309038,55.59823365,240.47,240.39,43.90393365]
[1732166309329,31.6943,240.47,240.41,23.90393365]
[1732166309642,31.6943,240.47,240.42,20.0]
[1732166311732,23.776884,240.46,240.41,20.0]
[1732166311938,23.776884,240.46,240.4,20.0]
[1732166312107,23.776884,240.46,240.4,43.90393365]
[1732166312824,23.776884,240.46,240.42,20.0]
[1732166313530,23.776884,240.46,240.38,20.0]
[1732166313730,23.776884,240.46,240.4,20.0]
[1732166314038,23.90393365,240.45,240.4,20.0]
[1732166314241,23.776884,240.46,240.39,23.90393365]
[1732166314611,23.776884,240.46,240.4,20.0]
[1732166315342,38.69409099,240.46,240.39,20.0]
[1732166315506,23.776884,240.46,240.4,20.0]
[1732166315713,23.776884,240.46,240.44,34.91720699]
[1732166315907,23.776884,240.48,240.44,34.91720699]
[1732166316111,23.776884,240.48,240.46,20.0]
[1732166316612,32.8732,240.53,240.47,14.91720699]
[1732166316833,32.8732,240.53,240.48,20.0]
[1732166318040,47.01820699,240.59,240.52,34.91720699]
[1732166318212,47.01820699,240.59,240.52,20.0]
[1732166318416,47.01820699,240.59,240.51,20.0]
[1732166318621,14.91720699,240.55,240.48,20.0]
[1732166319025,14.91720699,240.57,240.5,20.0]
[1732166319220,23.776884,240.56,240.5,20.0]
[1732166319830,14.91720699,240.55,240.5,20.0]
[1732166320032,23.776884,240.54,240.48,20.0]
[1732166320241,23.776884,240.52,240.43,14.91720699]
[1732166320544,23.776884,240.5,240.43,14.91720699]
[1732166321245,23.776884,240.5,240.43,19.59359723]
[1732166321635,23.776884,240.5,240.44,20.0]
[1732166321830,23.776884,240.5,240.46,20.0]
[1732166322146,23.776884,240.52,240.46,20.0]
[1732166322748,23.776884,240.52,240.46,23.85414366]
[1732166323048,23.776884,240.53,240.47,20.0]
[1732166323836,23.776884,240.53,240.44,28.5305339]
[1732166324223,23.776884,240.53,240.45,20.0]
[1732166324451,23.776884,240.53,240.46,23.85414366]
[1732166324752,23.776884,240.57,240.49,20.0]
[1732166324953,23.776884,240.55,240.49,20.0]
[1732166325123,23.85414366,240.56,240.49,20.0]
[1732166325328,32.101,240.59,240.49,20.0]
[1732166325525,23.85414366,240.57,240.49,20.0]
[1732166325754,23.85414366,240.57,240.51,20.0]
[1732166325937,23.85414366,240.55,240.51,20.0]
[1732166326442,32.101,240.59,240.54,20.0]
[1732166326629,32.101,240.59,240.54,25.19855691]
[1732166327732,23.776884,240.58,240.54,25.19855691]
[1732166328027,23.776884,240.58,240.55,5.19855691]
[1732166328235,32.101,240.59,240.56,20.0]
[1732166328629,23.85414366,240.64,240.56,20.0]
[1732166329029,23.776884,240.63,240.56,20.0]
[1732166329247,23.776884,240.63,240.56,20.62332731]
[1732166329447,23.776884,240.63,240.56,49.67602788]
[1732166329758,23.776884,240.64,240.58,43.85414366]
[1732166329971,31.3879,240.65,240.58,49.52214502]
[1732166331036,23.85414366,240.64,240.58,43.85414366]
[1732166331556,23.85414366,240.64,240.5,70.0]
[1732166331557,23.85414366,240.62,240.55,20.0]
[1732166331734,31.3879,240.65,240.55,20.0]
[1732166331735,23.776884,240.64,240.55,20.0]
[1732166331929,23.776884,240.6,240.55,20.0]
[1732166333432,23.776884,240.6,240.55,25.66800136]
[1732166334449,23.85414366,240.59,240.55,5.66800136]
[1732166334758,23.776884,240.55,240.49,5.66800136]
[1732166334954,23.85414366,240.54,240.49,5.66800136]
[1732166335138,23.776884,240.53,240.49,5.66800136]
[1732166335951,23.776884,240.54,240.49,5.66800136]
[1732166336634,23.776884,240.54,240.5,20.0]
[1732166336845,23.85414366,240.57,240.5,25.66800136]
[1732166337159,13.276,240.66,240.43,8.83482667]
[1732166337160,23.776884,240.54,240.52,20.0]
[1732166337457,23.776884,240.52,240.46,5.66800136]
[1732166337761,23.85414366,240.49,240.46,5.66800136]
[1732166337970,23.776884,240.5,240.46,5.66800136]
[1732166338460,23.85414366,240.51,240.46,5.66800136]
[1732166339733,23.85414366,240.51,240.47,20.0]
[1732166340453,23.85414366,240.51,240.33,70.5]
[1732166340454,23.776884,240.48,240.39,23.85414366]
[1732166340642,23.776884,240.48,240.39,29.52214502]
[1732166340643,23.85414366,240.46,240.39,29.52214502]
[1732166341771,23.85414366,240.44,240.39,5.66800136]
[1732166341947,23.85414366,240.42,240.39,5.66800136]
[1732166342157,57.17614366,240.4,240.31,23.85414366]
[1732166342372,57.17614366,240.4,240.32,5.66800136]
[1732166343269,23.85414366,240.38,240.32,5.66800136]
[1732166343457,33.322,240.4,240.33,23.85414366]
[1732166343767,33.322,240.4,240.3,4.76928811]
[1732166343768,33.322,240.4,240.35,23.85414366]
[1732166344065,33.322,240.4,240.35,29.52214502]
[1732166344779,33.322,240.4,240.35,20.59242494]
[1732166345142,33.322,240.4,240.39,34.92442358]
[1732166345361,33.322,240.4,240.39,20.0]
[1732166345763,33.322,240.4,240.37,20.0]
[1732166346462,38.70130758,240.39,240.34,20.0]
[1732166346653,23.776884,240.36,240.3,20.0]
[1732166346846,23.776884,240.36,240.3,5.66800136]
[1732166347046,23.776884,240.36,240.29,14.92442358]
[1732166347373,14.92442358,240.35,240.27,14.92442358]
[1732166347581,23.776884,240.36,240.25,5.66800136]
[1732166347747,23.776884,240.36,240.29,14.92442358]
[1732166347748,23.776884,240.34,240.29,14.92442358]
[1732166348070,23.776884,240.36,240.3,14.92442358]
[1732166348973,23.776884,240.37,240.31,14.92442358]
[1732166349279,23.776884,240.38,240.32,20.0]
[1732166349567,23.776884,240.39,240.32,34.92442358]
[1732166349742,23.776884,240.39,240.33,14.92442358]
[1732166349946,33.322,240.4,240.37,14.92442358]
[1732166350169,33.322,240.4,240.39,20.0]
[1732166350355,33.322,240.4,240.39,34.92442358]
[1732166350555,42.9656,240.47,240.39,34.92442358]
[1732166350758,42.9656,240.47,240.45,20.0]
[1732166351454,57.89002358,240.47,240.4,20.0]
[1732166351657,14.92442358,240.46,240.4,20.0]
[1732166352368,14.92442358,240.46,240.37,14.92442358]
[1732166352548,23.776884,240.45,240.38,20.0]
[1732166353056,23.776884,240.41,240.36,20.0]
[1732166353452,23.776884,240.41,240.36,43.88161329]
[1732166353645,66.84721329,240.47,240.4,20.0]
[1732166353845,23.776884,240.44,240.4,20.0]
[1732166354249,23.776884,240.46,240.41,23.88161329]
[1732166354445,23.776884,240.46,240.42,20.0]
[1732166354651,42.9656,240.47,240.44,23.88161329]
[1732166354871,42.9656,240.47,240.46,20.0]
[1732166355460,42.9656,240.47,240.43,43.88161329]
[1732166355859,42.9656,240.47,240.42,20.0]
[1732166356369,42.9656,240.47,240.43,23.88161329]
[1732166356550,42.9656,240.47,240.46,20.0]
[1732166357278,42.9656,240.47,240.41,23.88161329]
[1732166357976,23.776884,240.46,240.41,23.88161329]
[1732166358175,23.776884,240.46,240.41,29.54961465]
[1732166358475,30.7551,240.47,240.46,20.0]
[1732166359078,30.7551,240.47,240.44,20.0]
[1732166360071,30.7551,240.47,240.46,20.0]
[1732166362488,30.7551,240.47,240.45,20.0]
[1732166365504,23.776884,240.46,240.44,5.66800136]
[1732166365798,23.776884,240.46,240.25,70.0]
[1732166365799,47.65849729,240.46,240.35,23.88161329]
[1732166365967,23.88161329,240.42,240.35,23.88161329]
[1732166366576,23.776884,240.41,240.33,29.54961465]
[1732166366777,23.88161329,240.4,240.33,5.66800136]
[1732166367566,23.88161329,240.38,240.33,5.66800136]
[1732166369172,23.88161329,240.38,240.34,20.0]
[1732166369504,23.776884,240.37,240.32,20.0]
[1732166371373,31.7457,240.35,240.3,20.0]
[1732166371569,23.88161329,240.32,240.25,23.88161329]
[1732166371995,31.7457,240.35,240.22,5.66800136]
[1732166371996,23.88161329,240.3,240.22,5.66800136]
[1732166372292,23.88161329,240.3,240.12,23.88161329]
[1732166372293,23.88161329,240.26,240.18,23.88161329]
[1732166372691,47.65849729,240.28,240.2,23.88161329]
[1732166373476,23.776884,240.25,240.18,23.88161329]
[1732166373789,23.776884,240.27,240.2,23.88161329]
[1732166373971,23.776884,240.25,240.18,28.9826702]
[1732166374187,23.88161329,240.26,240.18,23.88161329]
[1732166374691,23.88161329,240.28,240.2,23.88161329]
[1732166374899,23.776884,240.27,240.21,20.0]
[1732166375113,23.776884,240.28,240.23,20.0]
[1732166375310,12.4667,240.29,240.24,23.88161329]
[1732166375508,12.4667,240.29,240.27,20.0]
[1732166375718,43.8567,240.35,240.29,20.0]
[1732166376013,43.8567,240.35,240.3,23.88161329]
[1732166376208,43.8567,240.35,240.31,20.0]
[1732166376914,43.8567,240.35,240.33,20.0]
[1732166378106,43.8567,240.35,240.34,43.88161329]
[1732166378107,31.7457,240.35,240.34,43.88161329]
[1732166379528,31.7457,240.35,240.33,20.0]
[1732166380215,31.7457,240.35,240.31,20.0]
[1732166380404,31.7457,240.35,240.29,20.0]
[1732166381500,31.7457,240.35,240.29,43.88161329]
[1732166381701,31.7457,240.35,240.33,20.0]
[1732166382414,31.7457,240.35,240.3,43.88161329]
[1732166382595,31.7457,240.35,240.31,20.0]
[1732166382793,31.7457,240.35,240.31,34.92881762]
[1732166387803,31.7457,240.35,240.3,20.0]
[1732166388007,23.776884,240.34,240.3,20.0]
[1732166388200,23.776884,240.34,240.28,20.0]
[1732166390099,46.67451762,240.35,240.29,14.92881762]
[1732166390299,46.67451762,240.35,240.3,20.0]
[1732166390523,31.7457,240.35,240.3,20.0]
[1732166391323,31.7457,240.35,240.32,20.0]
[1732166392302,31.7457,240.35,240.3,20.0]
[1732166394921,46.67451762,240.35,240.28,20.0]
[1732166395122,14.92881762,240.33,240.25,14.92881762]
[1732166395696,14.92881762,240.33,240.26,20.0]
[1732166397035,46.67451762,240.35,240.28,20.0]
[1732166397236,31.7457,240.35,240.3,20.0]
[1732166397525,12.365,240.4,240.3,20.0]
[1732166397728,12.365,240.4,240.36,20.0]
[1732166398315,12.365,240.4,240.32,20.0]
[1732166398316,14.92881762,240.39,240.32,20.0]
[1732166399211,14.92881762,240.37,240.32,20.0]
[1732166399715,14.92881762,240.33,240.16,21.0196]
[1732166399915,14.92881762,240.32,240.24,20.0]
[1732166400127,14.92881762,240.33,240.26,20.0]
[1732166400320,14.92881762,240.37,240.3,20.0]
[1732166401333,23.776884,240.38,240.32,20.0]
[1732166401631,14.92881762,240.37,240.32,20.0]
[1732166401831,14.92881762,240.35,240.29,20.0]
[1732166402335,14.92881762,240.31,240.16,0.5196]
[1732166402534,14.92881762,240.31,240.22,14.92881762]
[1732166403629,14.92881762,240.31,240.23,20.0]
[1732166403816,14.92881762,240.33,240.25,20.0]
[1732166404016,14.92881762,240.33,240.26,14.92881762]
[1732166404334,14.92881762,240.35,240.27,20.0]
[1732166404634,23.776884,240.34,240.27,20.0]
[1732166404843,14.92881762,240.35,240.29,20.0]
[1732166405020,14.92881762,240.37,240.31,20.0]
[1732166405522,14.92881762,240.39,240.31,14.92881762]
[1732166405720,14.92881762,240.39,240.24,14.92881762]
[1732166405721,12.365,240.4,240.34,20.0]
[1732166405920,12.365,240.4,240.36,20.0]
[1732166407640,30.6268,240.42,240.38,20.0]
[1732166407976,30.6268,240.42,240.4,20.0]
[1732166408141,12.4935,240.46,240.4,20.0]
[1732166408516,12.4935,240.46,240.41,14.92881762]
[1732166408717,12.4935,240.46,240.42,20.0]
[1732166409221,12.4935,240.46,240.41,20.0]
[1732166409423,14.92881762,240.44,240.36,14.92881762]
[1732166409634,14.92881762,240.45,240.38,20.0]
[1732166410342,14.92881762,240.44,240.37,20.0]
[1732166410544,14.92881762,240.45,240.37,34.92881762]
[1732166410718,14.92881762,240.45,240.38,14.92881762]
[1732166411037,14.92881762,240.45,240.38,20.0]
[1732166411217,14.92881762,240.43,240.38,20.0]
[1732166411419,14.92881762,240.42,240.38,20.0]
[1732166411731,14.92881762,240.44,240.38,20.0]
[1732166412132,14.92881762,240.43,240.36,34.92881762]
[1732166412434,12.4935,240.46,240.36,20.0]
[1732166412435,14.92881762,240.42,240.36,20.0]
[1732166412615,14.92881762,240.41,240.36,20.0]
[1732166412819,14.92881762,240.4,240.36,20.0]
[1732166413041,12.4935,240.46,240.31,14.92881762]
[1732166413042,14.92881762,240.38,240.31,14.92881762]
[1732166413214,14.92881762,240.38,240.25,0.5]
[1732166413412,14.92881762,240.34,240.2,1.0196]
[1732166413617,14.92881762,240.34,240.27,14.92881762]
[1732166413840,13.1318,240.35,240.29,14.92881762]
[1732166414039,13.1318,240.35,240.33,14.92881762]
[1732166414341,30.2992,240.43,240.34,14.92881762]
[1732166414342,13.1318,240.42,240.34,14.92881762]
[1732166414540,13.1318,240.42,240.35,14.92881762]
[1732166414844,13.1318,240.42,240.39,14.92881762]
[1732166415047,30.2992,240.43,240.4,20.0]
[1732166415543,30.2992,240.43,240.38,34.92881762]
[1732166415747,30.2992,240.43,240.38,20.0]
[1732166415919,30.2992,240.43,240.38,43.23231062]
[1732166416239,30.2992,240.43,240.41,20.0]
[1732166416545,16.618152,240.42,240.41,20.0]
[1732166417126,16.618152,240.42,240.41,14.92881762]
[1732166417335,16.618152,240.42,240.41,34.92881762]
[1732166418227,16.618152,240.42,240.39,20.0]
[1732166418429,16.618152,240.42,240.41,20.0]
[1732166418923,16.618152,240.42,240.39,20.0]
[1732166419120,16.618152,240.42,240.39,34.92881762]
[1732166419653,16.618152,240.42,240.4,14.92881762]
[1732166419849,16.618152,240.42,240.39,20.0]
[1732166420147,16.618152,240.42,240.39,34.92881762]
[1732166420444,16.618152,240.42,240.41,20.0]
[1732166420630,16.618152,240.42,240.38,8.303493]
[1732166420831,14.92881762,240.41,240.38,8.303493]
[1732166421034,31.54696962,240.42,240.38,8.303493]
[1732166421444,16.618152,240.42,240.38,23.23231062]
[1732166422150,16.618152,240.42,240.39,20.0]
[1732166422937,31.54696962,240.42,240.39,20.0]
[1732166423140,14.92881762,240.4,240.38,8.303493]
[1732166423330,30.2881,240.39,240.38,8.303493]
[1732166423527,43.5423,240.39,240.38,8.303493]
[1732166425834,30.2881,240.39,240.38,43.23231062]
[1732166426441,16.618152,240.42,240.38,43.23231062]
[1732166426631,16.618152,240.42,240.41,34.92881762]
[1732166428036,16.618152,240.42,240.41,44.92881762]
[1732166428953,31.54696962,240.42,240.41,10.0]
[1732166430342,16.618152,240.42,240.41,10.0]
[1732166430537,31.54696962,240.42,240.41,10.0]
[1732166430857,16.618152,240.42,240.41,10.0]
[1732166431238,31.54696962,240.42,240.41,10.0]
[1732166431432,16.618152,240.42,240.41,10.0]
[1732166431840,16.618152,240.42,240.41,44.92881762]
[1732166432551,16.618152,240.42,240.41,30.0]
[1732166432855,16.618152,240.42,240.41,44.92881762]
[1732166434159,16.618152,240.42,240.41,30.0]
[1732166434867,16.618152,240.42,240.41,10.0]
[1732166435442,31.54696962,240.42,240.41,10.0]
[1732166436466,45.01106962,240.42,240.38,8.303493]
[1732166436661,14.92881762,240.4,240.38,8.303493]
[1732166437464,45.01106962,240.42,240.38,8.303493]
[1732166437663,44.51106962,240.42,240.38,8.303493]
[1732166438005,29.582252,240.42,240.38,23.23231062]
[1732166438146,29.582252,240.42,240.39,14.92881762]
[1732166438545,29.582252,240.42,240.41,14.92881762]
[1732166438776,29.582252,240.42,240.41,34.92881762]
[1732166438777,16.618152,240.42,240.41,34.92881762]
[1732166440268,16.618152,240.42,240.41,58.70570162]
[1732166440471,44.8196,240.54,240.42,20.0]
[1732166440647,44.8196,240.54,240.5,23.85311573]
[1732166441055,44.8196,240.54,240.48,23.85311573]
[1732166441263,23.85311573,240.52,240.45,23.85311573]
[1732166441480,23.85311573,240.51,240.46,20.0]
[1732166441772,23.85311573,240.5,240.43,23.85311573]
[1732166441977,23.85311573,240.48,240.43,20.0]
[1732166442348,23.85311573,240.48,240.42,20.0]
[1732166442764,0.5,240.5,240.42,43.85311573]
[1732166443082,23.85311573,240.46,240.41,20.0]
[1732166443251,23.85311573,240.45,240.41,20.0]
[1732166443580,32.1372,240.44,240.39,20.0]
[1732166443750,32.1372,240.44,240.39,43.85311573]
[1732166444271,32.1372,240.44,240.41,23.85311573]
[1732166444469,32.1372,240.44,240.43,23.85311573]
[1732166444669,32.1372,240.44,240.42,43.85311573]
[1732166444853,37.02031573,240.43,240.38,8.303493]
[1732166445054,13.1672,240.43,240.38,8.303493]
[1732166445677,13.1672,240.43,240.38,32.15660873]
[1732166446290,13.1672,240.43,240.39,20.0]
[1732166446451,13.1672,240.43,240.39,43.85311573]
[1732166446656,13.1672,240.43,240.42,23.85311573]
[1732166447359,13.1672,240.43,240.41,23.85311573]
[1732166447761,13.1672,240.43,240.39,20.0]
[1732166449065,13.1672,240.43,240.41,23.85311573]
[1732166449274,13.1672,240.43,240.42,23.85311573]
[1732166450170,13.1672,240.43,240.4,23.85311573]
[1732166450354,13.1672,240.43,240.39,43.85311573]
[1732166452383,32.1372,240.44,240.42,23.85311573]
[1732166452795,19.59497786,240.48,240.43,23.85311573]
[1732166452974,13.1153,240.48,240.47,23.85311573]
[1732166453173,13.1153,240.48,240.44,20.0]
[1732166453563,13.1153,240.48,240.45,23.85311573]
[1732166453763,13.1153,240.48,240.44,23.85311573]
[1732166454086,36.96841573,240.48,240.41,23.85311573]
[1732166454663,43.44809359,240.48,240.41,23.85311573]
[1732166454985,13.1153,240.48,240.43,23.85311573]
[1732166455168,13.1153,240.48,240.42,23.85311573]
[1732166455487,13.1153,240.48,240.43,23.85311573]
[1732166455859,13.1153,240.48,240.42,23.85311573]
[1732166456066,13.1153,240.48,240.43,23.85311573]
[1732166456279,36.96841573,240.48,240.41,23.85311573]
[1732166456489,6.47967786,240.47,240.41,20.0]
[1732166456794,43.44809359,240.48,240.41,43.85311573]
[1732166456965,19.59497786,240.48,240.42,23.85311573]
[1732166457486,13.1153,240.48,240.47,43.85311573]
[1732166458469,13.1153,240.48,240.47,23.85311573]
[1732166458691,31.2538,240.5,240.48,20.0]
[1732166458970,16.614764,240.52,240.49,23.85311573]
[1732166459181,16.614764,240.52,240.51,23.85311573]
[1732166459388,12.3756,240.54,240.51,23.85311573]
[1732166459596,30.3223,240.55,240.53,23.85311573]
[1732166459770,30.3223,240.55,240.54,23.85311573]
[1732166460802,30.3223,240.55,240.53,20.0]
[1732166460980,30.3223,240.55,240.5,23.85311573]
[1732166461296,30.3223,240.55,240.51,20.0]
[1732166461868,30.3223,240.55,240.49,23.85311573]
[1732166462091,30.3223,240.55,240.37,11.0196]
[1732166462092,23.85311573,240.54,240.48,20.0]
[1732166462468,30.33279359,240.54,240.47,23.85311573]
[1732166463308,30.33279359,240.54,240.37,11.0196]
[1732166463599,23.85311573,240.5,240.42,23.85311573]
[1732166463800,23.85311573,240.5,240.36,23.85311573]
[1732166463801,23.85311573,240.48,240.41,23.85311573]
[1732166464008,23.85311573,240.48,240.38,32.15660873]
[1732166464009,23.85311573,240.45,240.38,32.15660873]
[1732166464171,31.1784,240.45,240.38,32.15660873]
[1732166464375,55.03151573,240.45,240.38,8.303493]
[1732166464791,31.1784,240.45,240.42,23.85311573]
[1732166464997,31.1784,240.45,240.41,23.85311573]
[1732166465180,31.1784,240.45,240.44,23.85311573]
[1732166465689,39.25497786,240.5,240.44,23.85311573]
[1732166466001,32.7753,240.5,240.47,23.85311573]
[1732166466201,32.7753,240.5,240.45,23.85311573]
[1732166466493,39.25497786,240.5,240.44,23.85311573]
[1732166466700,63.10809359,240.5,240.42,23.85311573]
[1732166466892,30.33279359,240.49,240.43,20.0]
[1732166467094,23.85311573,240.47,240.4,23.85311573]
[1732166467400,23.85311573,240.46,240.39,23.85311573]
[1732166467708,23.85311573,240.42,240.38,8.303493]
[1732166467881,30.33279359,240.43,240.38,8.303493]
[1732166468199,36.73623973,240.45,240.38,8.303493]
[1732166468200,30.33279359,240.42,240.38,8.303493]
[1732166468375,56.52341573,240.39,240.38,8.303493]
[1732166468584,63.00309359,240.39,240.38,8.303493]
[1732166468902,80.80029973,240.39,240.28,23.85311573]
[1732166469111,23.85311573,240.31,240.24,23.85311573]
[1732166469298,23.85311573,240.29,240.22,23.85311573]
[1732166469477,23.85311573,240.25,240.17,23.85311573]
[1732166469883,23.85311573,240.21,240.14,23.85311573]
[1732166470279,23.85311573,240.21,240.12,23.85311573]
[1732166470483,23.85311573,240.2,240.12,23.85311573]
[1732166470879,23.85311573,240.2,240.13,23.85311573]
[1732166471075,6.50987498,240.44,240.26,1.0]
[1732166471280,43.9213,240.47,240.28,0.5]
[1732166471479,43.9213,240.47,240.43,20.0]
[1732166471910,43.9213,240.47,240.43,43.85311573]
[1732166472089,36.93991573,240.54,240.46,43.85311573]
[1732166472280,23.85311573,240.51,240.44,23.85311573]
[1732166472479,23.85311573,240.5,240.43,20.0]
[1732166472681,23.85311573,240.51,240.43,43.85311573]
[1732166472982,23.85311573,240.51,240.43,23.85311573]
[1732166473178,13.0868,240.54,240.44,20.0]
[1732166473179,23.85311573,240.5,240.44,20.0]
[1732166473385,23.85311573,240.53,240.46,43.85311573]
[1732166473898,23.85311573,240.53,240.35,0.6237842]
[1732166474096,23.85311573,240.53,240.46,23.85311573]
[1732166474410,23.85311573,240.53,240.46,43.85311573]
[1732166474590,23.85311573,240.53,240.46,20.0]
[1732166475412,23.85311573,240.52,240.46,20.0]
[1732166475608,23.85311573,240.5,240.46,20.0]
[1732166475793,23.85311573,240.49,240.44,20.0]
[1732166476101,13.0868,240.54,240.36,23.85311573]
[1732166476102,23.85311573,240.45,240.36,23.85311573]
[1732166476290,0.5,240.51,240.36,23.85311573]
[1732166476291,23.85311573,240.44,240.36,23.85311573]
[1732166476687,23.85311573,240.45,240.37,23.85311573]
[1732166476887,23.85311573,240.45,240.27,0.5]
[1732166476888,23.85311573,240.46,240.39,23.85311573]
[1732166477586,23.85311573,240.52,240.45,23.85311573]
[1732166477884,23.85311573,240.52,240.45,43.85311573]
[1732166478102,23.85311573,240.51,240.45,20.0]
[1732166478304,23.85311573,240.48,240.42,20.0]
[1732166478681,23.85311573,240.5,240.44,20.0]
[1732166479012,19.59667498,240.54,240.44,20.0]
[1732166479013,23.85311573,240.49,240.44,20.0]
[1732166479316,30.36299071,240.52,240.45,20.0]
[1732166479491,6.50987498,240.53,240.47,23.85311573]
[1732166479699,19.59667498,240.54,240.51,23.85311573]
[1732166479885,36.93991573,240.54,240.49,20.0]
[1732166480088,36.93991573,240.54,240.45,20.0]
[1732166480501,36.93991573,240.54,240.39,23.776884]
[1732166480688,36.93991573,240.54,240.47,23.85311573]
[1732166480889,13.0868,240.54,240.48,43.85311573]
[1732166481113,6.50987498,240.59,240.53,43.85311573]
[1732166481288,12.8539,240.61,240.55,23.85311573]
[1732166481494,36.70701573,240.61,240.54,23.85311573]
[1732166481892,12.8539,240.61,240.54,23.85311573]
[1732166482098,37.39487498,240.63,240.59,23.85311573]
[1732166482385,37.39487498,240.63,240.53,20.0]
[1732166482386,6.50987498,240.66,240.61,23.85311573]
[1732166482594,25.68245573,240.67,240.61,20.0]
[1732166482595,23.85311573,240.64,240.61,20.0]
[1732166482911,7.00987498,240.66,240.49,20.0]
[1732166483101,23.85311573,240.6,240.49,20.0]
[1732166483405,6.50987498,240.65,240.49,20.0]
[1732166483588,6.50987498,240.65,240.44,20.0]
[1732166483788,6.50987498,240.64,240.46,20.0]
[1732166484012,6.50987498,240.64,240.48,20.0]
[1732166484208,23.85311573,240.6,240.54,20.0]
[1732166484505,23.85311573,240.56,240.48,23.85311573]
[1732166484686,23.85311573,240.57,240.5,23.85311573]
[1732166484886,23.85311573,240.58,240.51,23.85311573]
[1732166485081,23.85311573,240.6,240.52,23.85311573]
[1732166485296,12.95935573,240.65,240.58,23.85311573]
[1732166485297,23.85311573,240.65,240.58,23.85311573]
[1732166485606,23.85311573,240.59,240.51,20.0]
[1732166485820,23.85311573,240.6,240.53,20.0]
[1732166486005,23.85311573,240.58,240.51,23.85311573]
[1732166486303,23.85311573,240.57,240.5,23.85311573]
[1732166486511,23.85311573,240.55,240.48,23.85311573]
[1732166486698,23.85311573,240.53,240.46,23.85311573]
[1732166486909,23.776884,240.59,240.36,24.35311573]
[1732166486910,23.85311573,240.51,240.44,23.85311573]
[1732166487290,23.85311573,240.51,240.36,23.85311573]
[1732166487291,36.84601573,240.52,240.45,23.85311573]
[1732166488090,23.85311573,240.51,240.44,23.85311573]
[1732166488487,23.85311573,240.48,240.4,23.85311573]
[1732166488906,23.85311573,240.47,240.39,23.85311573]
[1732166489702,23.85311573,240.49,240.43,20.0]
[1732166490007,23.85311573,240.49,240.41,23.85311573]
[1732166490212,23.85311573,240.49,240.43,20.0]
[1732166490716,12.9929,240.52,240.46,43.85311573]
[1732166490890,12.9929,240.52,240.48,20.0]
[1732166491091,23.85311573,240.51,240.48,20.0]
[1732166491396,23.85311573,240.5,240.44,20.0]
[1732166491997,33.028,240.56,240.49,23.85311573]
[1732166492197,33.028,240.56,240.52,23.85311573]
[1732166492493,33.028,240.56,240.41,0.5]